Cogmind - Beta 13 @@@ ROGUE MODE // 2024.04.06 @ 13:05:22 Player: emory Result: Destroyed by G-47 Trooper with Particle Gun Performance ------------- Evolutions (2) 1000 Regions Visited (5) 1000 Robots Destroyed (12) 60 Value Destroyed (369) 369 Prototype IDs (0) 0 Alien Tech Used (0) 0 Bonus (0) 0 TOTAL SCORE: 2429 Bonus ------- None Cogmind --------- Core Integrity 0/550 Matter 265/300 Energy 47/100 System Corruption 0% Temperature Warm (136) Movement Core (400) Ox7 Location -8/Materials Parts ------- > --- POWER (1) -------- (None) > --- PROPULSION (4) --- (None) > --- UTILITY (4) ------ Large Storage Unit > --- WEAPON (2) ------- Spread Laser > --- INVENTORY (15) --- Ion Engine Light Ion Engine Improved Treads Improved Treads Datajack Peak State ------------ > --- POWER ------------ Ion Engine > --- PROPULSION ------- Improved Treads Improved Treads Improved Treads Improved Treads > --- UTILITY ---------- Large Storage Unit System Shield > --- WEAPON ----------- Light Assault Rifle Light Cannon > --- INVENTORY -------- Ion Engine Improved Treads Improved Treads Datajack [Rating: 15] Favorites ----------- Power Ion Engine Engine Ion Engine Propulsion Improved Treads Treads Improved Treads Leg Aluminum Leg Utility Large Storage Unit Storage Large Storage Unit Hackware System Shield Protection Hardened Medium Armor Plating Weapon Light Assault Rifle Energy Gun Spread Laser Ballistic Gun Light Assault Rifle Ballistic Cannon Light Cannon Build | -11 -10 -10 -9 -9 -8 ------- Run | Yrd Mat Min Mat Min Mat Slots Evolved 4 | . . . 2 . 2 Power . | . . . . . . Propulsion 2 | . . . 2 . . Utility 2 | . . . . . 2 Weapon . | . . . . . . Parts Attached 20 | 5 5 1 4 . 5 Power 2 | 1 1 . . . . Engine 2 | 1 1 . . . . Core . | . . . . . . Reactor . | . . . . . . Propulsion 8 | 2 2 . 4 . . Treads 6 | 2 . . 4 . . Leg 2 | . 2 . . . . Wheel . | . . . . . . Hover . | . . . . . . Flight . | . . . . . . Utility 4 | 1 1 . . . 2 Device . | . . . . . . Storage 2 | 1 1 . . . . Processor . | . . . . . . Hackware 1 | . . . . . 1 Protection 1 | . . . . . 1 Artifact . | . . . . . . Weapon 6 | 1 1 1 . . 3 Energy Gun 2 | . . . . . 2 Energy Cannon . | . . . . . . Ballistic Gun 3 | 1 1 . . . 1 Ballistic Cannon 1 | . . 1 . . . Launcher . | . . . . . . Special Weapon . | . . . . . . Impact Weapon . | . . . . . . Slashing Weapon . | . . . . . . Piercing Weapon . | . . . . . . Special Melee Weapon . | . . . . . . Unidentified Prototypes . | . . . . . . Parts Lost 14 | . 2 1 . . 11 Power 2 | . 1 . . . 1 Propulsion 5 | . 1 . . . 4 Utility 2 | . . . . . 2 Weapon 5 | . . 1 . . 4 Highest Loss Streak 9 | . 2 1 . . 9 To Critical Strikes 1 | . . . . . 1 Average Slot Usage (%) 74 | . 72 82 75 88 65 Engine 9 | . 10 14 11 11 7 Treads 24 | . 16 . 19 44 31 Leg 6 | . 9 28 12 . . Storage 11 | . 14 14 11 11 9 Ballistic Gun 14 | . 22 21 11 11 6 Ballistic Cannon 5 | . . 4 11 11 6 Naked Turns . | . . . . . . Heaviest Build 34 | 9 27 29 29 29 34 Greatest Support 92 | 40 40 20 92 92 92 Greatest Overweight (x) 7 | . 1 1 1 . 7 Average Overweight (x) . | . . 1 . . . Largest Inventory Capacity 15 | 8 15 15 15 15 15 Average Capacity 12 | 7 9 15 15 15 15 Most Carried 8 | 5 4 2 8 4 7 Average Carried 3 | 3 3 1 3 4 5 Final Capacity 15 | 8 15 15 15 15 15 Final Carried 5 | 4 2 2 4 4 5 Class Distribution -------------------- 100% | Mutant Dominant Class ---------------- Mutant | -10/Materials Mutant | -10/Mines Mutant | -9/Materials Mutant | -9/Mines Mutant | -8/Materials Resources | -11 -10 -10 -9 -9 -8 ----------- Run | Yrd Mat Min Mat Min Mat Matter Collected 440 | 218 65 75 . . 82 Remotely . | . . . . . . Salvage Created 389 | . 70 97 . . 222 Parts 18 | . 3 4 . . 11 Haulers Intercepted . | . . . . . . Recyclers Shooed . | . . . . . . Parts Field Recycled . | . . . . . . Retrieved Matter . | . . . . . . Parts Self-Destructed . | . . . . . . Prevented . | . . . . . . Kills | -11 -10 -10 -9 -9 -8 ------- Run | Yrd Mat Min Mat Min Mat Combat Hostiles Destroyed 11 | . 2 2 . . 7 Guns 8 | . 2 1 . . 5 Cannons 3 | . . 1 . . 2 Classes Destroyed 4 | . 1 . . . 3 Recycler 1 | . . . . . 1 Swarmer 3 | . . . . . 3 Grunt 6 | . 2 2 . . 2 Sentry 2 | . . . . . 2 Best Kill Streak 4 | . 2 2 . . 4 Combat Bots Only 3 | . 2 2 . . 3 Max Kills in Single Turn 1 | . 1 1 . . 1 Gunslinging . | . . . . . . Exploded . | . . . . . . Melee . | . . . . . . Uniques/NPCs Destroyed . | . . . . . . Combat | -11 -10 -10 -9 -9 -8 -------- Run | Yrd Mat Min Mat Min Mat Hostile Shots Fired 271 | . 44 18 4 . 205 Missed 64 | . 6 5 3 . 50 Damage Taken 2697 | . 472 176 11 . 2038 Core 683 | . 66 53 11 . 553 Absorbed by Shields . | . . . . . . Core Remaining (%) 83 | 100 . 52 . 97 . Volleys Fired 71 | . 27 14 . . 30 Largest 2 | . 2 2 . . 2 Hottest 85 | . 40 55 . . 85 Shots Fired 114 | . 37 25 . . 52 Gun 96 | . 37 23 . . 36 Cannon 18 | . . 2 . . 16 Launcher . | . . . . . . Special . | . . . . . . Kinetic 100 | . 37 25 . . 38 Thermal 14 | . . . . . 14 Explosive . | . . . . . . Electromagnetic . | . . . . . . Robot Hit Streak 12 | . 12 4 . . 11 Robot Miss Streak 4 | . 3 4 . . 4 Penetration Max . | . . . . . . Secondary Targets 1 | . 1 . . . . Max Gunslinging Chain 1 | . 1 . . . . Shots Hit Robots 77 | . 26 13 . . 38 Core Hits 49 | . 9 6 . . 34 Critical Kills . | . . . . . . Critical Parts Destroyed . | . . . . . . Critical Strikes . | . . . . . . Melee Attacks . | . . . . . . Impact . | . . . . . . Slashing . | . . . . . . Piercing . | . . . . . . Sneak Attacks . | . . . . . . Combat Hostiles . | . . . . . . Follow-up Attacks . | . . . . . . Damage Inflicted 900 | . 219 111 . . 570 Guns 647 | . 219 78 . . 350 Cannons 250 | . . 33 . . 217 Explosions . | . . . . . . Melee . | . . . . . . Ramming 3 | . . . . . 3 Kinetic 651 | . 219 111 . . 321 Thermal 246 | . . . . . 246 Explosive . | . . . . . . Electromagnetic . | . . . . . . Impact . | . . . . . . Slashing . | . . . . . . Piercing . | . . . . . . Highest Corruption . | . . . . . . Average Corruption . | . . . . . . Corruption Purged . | . . . . . . Corruption Blocked . | . . . . . . Overload Shots . | . . . . . . Overflow Damage . | . . . . . . Projectiles . | . . . . . . Explosions . | . . . . . . Melee . | . . . . . . Knockbacks 1 | . . . . . 1 Impact . | . . . . . . Kinetic 1 | . . . . . 1 Secondary . | . . . . . . Self-Inflicted Damage . | . . . . . . Shots . | . . . . . . Rammed 2 | . . . . . 2 Targets Rammed 3 | . . 1 . . 2 Kicked 1 | . . 1 . . . Crushed . | . . . . . . Highest Temperature 312 | . 15 20 . . 312 Average Temperature 56 | . 6 9 . . 82 Received Heat Transfer 978 | . 261 99 6 . 612 Siege Activations . | . . . . . . Robots Corrupted . | . . . . . . Combat Hostiles . | . . . . . . Parts Fried . | . . . . . . Impact Corruptions . | . . . . . . Robots Melted . | . . . . . . Combat Hostiles . | . . . . . . Parts Melted . | . . . . . . Heat Transferred 320 | . . . . . 320 Parts Sabotaged . | . . . . . . Parts Stolen . | . . . . . . Parts Stripped . | . . . . . . Power Chain Reactions . | . . . . . . Alert | -11 -10 -10 -9 -9 -8 ------- Run | Yrd Mat Min Mat Min Mat Peak Influence 115 | . 70 82 31 12 115 Initial 31 | . . 27 31 12 4 Average 39 | . 31 59 31 12 76 Maximum Alert Level . | . . . . . . Low Security (%) 100 | 100 100 100 100 100 100 Level 1 . | . . . . . . Level 2 . | . . . . . . Level 3 . | . . . . . . Level 4 . | . . . . . . Level 5 . | . . . . . . High Security . | . . . . . . Max Security . | . . . . . . Squads Dispatched 3 | . 2 . . . 1 Investigation . | . . . . . . Extermination . | . . . . . . Reinforcement 3 | . 2 . . . 1 Assault . | . . . . . . Garrison . | . . . . . . Intercept . | . . . . . . Searches Triggered . | . . . . . . Construction Impeded . | . . . . . . Haulers Reinforced . | . . . . . . Active Scanning Responses . | . . . . . . Cargo Convoy Interrupts . | . . . . . . Stealth | -11 -10 -10 -9 -9 -8 --------- Run | Yrd Mat Min Mat Min Mat Distress Signals 2 | . . . . . 2 Communications Jammed . | . . . . . . Distress Signals . | . . . . . . Times Spotted 23 | . 5 2 3 . 13 Peak Tracking Total 9 | . 3 2 3 . 9 Tactical Retreats . | . . . . . . Traps | -11 -10 -10 -9 -9 -8 ------- Run | Yrd Mat Min Mat Min Mat Traps Triggered . | . . . . . . Indirectly . | . . . . . . Trap Hack Attempts . | . . . . . . Triggered . | . . . . . . Disarmed . | . . . . . . Reprogrammed . | . . . . . . Reused . | . . . . . . Traps Extracted . | . . . . . . Installed . | . . . . . . Triggered . | . . . . . . Machines | -11 -10 -10 -9 -9 -8 ---------- Run | Yrd Mat Min Mat Min Mat Machines Disabled . | . . . . . . Max in Single Turn . | . . . . . . Machines Repaired . | . . . . . . Machines Dismantled . | . . . . . . Machines Sabotaged . | . . . . . . Overloaded Fab Kills . | . . . . . . Hacking | -11 -10 -10 -9 -9 -8 --------- Run | Yrd Mat Min Mat Min Mat Machines Accessed 1 | . 1 . . . . Terminals 1 | . 1 . . . . Fabricators . | . . . . . . Repair Stations . | . . . . . . Recycling Units . | . . . . . . Scanalyzers . | . . . . . . Garrison Access . | . . . . . . Total Hacks 1 | . 1 . . . . Successful 1 | . 1 . . . . Failed . | . . . . . . Catastrophic . | . . . . . . Database Lockouts . | . . . . . . Manual . | . . . . . . Terminals 1 | . 1 . . . . Fabricators . | . . . . . . Repair Stations . | . . . . . . Recycling Units . | . . . . . . Scanalyzers . | . . . . . . Garrison Access . | . . . . . . Terminal Hacks 1 | . 1 . . . . Dispatch Records 1 | . 1 . . . . Fabricator Hacks . | . . . . . . Repair Station Hacks . | . . . . . . Recycling Unit Hacks . | . . . . . . Scanalyzer . | . . . . . . Garrison Access Hacks . | . . . . . . Unauthorized Hacks . | . . . . . . Terminals . | . . . . . . Fabricators . | . . . . . . Repair Stations . | . . . . . . Recycling Units . | . . . . . . Scanalyzers . | . . . . . . Garrison Access . | . . . . . . Data Cores Recovered . | . . . . . . Used . | . . . . . . Hacking Detections . | . . . . . . Full Trace Events . | . . . . . . Feedback Events . | . . . . . . Feedback Blocked . | . . . . . . Robot Schematics Acquired . | . . . . . . Robots Built . | . . . . . . Authchips . | . . . . . . Time . | . . . . . . Total Robot Build Rating . | . . . . . . Part Schematics Acquired . | . . . . . . Parts Built . | . . . . . . Authchips . | . . . . . . Time . | . . . . . . Total Part Build Rating . | . . . . . . Parts Repaired . | . . . . . . Time . | . . . . . . Parts Recycled . | . . . . . . Recycled Matter . | . . . . . . Retrieved Matter . | . . . . . . Retrieved Components . | . . . . . . Parts Scanalyzed . | . . . . . . Part Schematics Acquired . | . . . . . . Parts Damaged . | . . . . . . Bothacking | -11 -10 -10 -9 -9 -8 ------------ Run | Yrd Mat Min Mat Min Mat Used RIF Installer . | . . . . . . Robots Hacked . | . . . . . . Non-combat . | . . . . . . Combat . | . . . . . . Robot Hacks Applied . | . . . . . . Relay Couplers Released . | . . . . . . Fabnet Peak Effective % . | . . . . . . Robots Rewired . | . . . . . . Allies Hacked . | . . . . . . Hacks Repelled . | . . . . . . Allies | -11 -10 -10 -9 -9 -8 -------- Run | Yrd Mat Min Mat Min Mat Total Allies . | . . . . . . Largest Group . | . . . . . . Highest-Rated Group . | . . . . . . Highest-Rated Ally . | . . . . . . Total Orders . | . . . . . . Ally Attacks . | . . . . . . Total Damage . | . . . . . . Kills . | . . . . . . Allies Corrupted . | . . . . . . Allies Melted . | . . . . . . Intel | -11 -10 -10 -9 -9 -8 ------- Run | Yrd Mat Min Mat Min Mat Robot Analysis Total . | . . . . . . Derelict Logs Recovered 2 | . . . . 2 . Drone Launches . | . . . . . . Drone Recoveries . | . . . . . . Exploration | -11 -10 -10 -9 -9 -8 ------------- Run | Yrd Mat Min Mat Min Mat Turns Passed 847 | 69 285 63 83 132 215 Spaces Moved 388 | 46 129 14 42 83 74 Core 18 | 16 . . . . 2 Treads 285 | 30 79 . 21 83 72 Legs 85 | . 50 14 21 . . Wheels . | . . . . . . Hover . | . . . . . . Flight . | . . . . . . Fastest Speed 50 | 50 120 190 160 160 160 Average Speed 158 | 121 158 190 175 160 165 Slowest Speed 400 | 160 190 190 190 160 400 Overloaded Moves . | . . . . . . Propulsion Burnouts . | . . . . . . Robots Hopped . | . . . . . . Cave-ins Triggered . | . . . . . . Exploration Rate (%) 13 | 3 26 7 7 25 12 Regions Visited 5 Branch Regions 2 Pre-discovered Areas . | . . . . . . Known Exits Taken . | . . . . . . Unknown Exits Taken 5 | 1 1 1 1 1 . Scrap Searched . | . . . . . . Spaces Dug . | . . . . . . Terrain Destroyed . | . . . . . . Melee . | . . . . . . Projectile . | . . . . . . AOE . | . . . . . . Terrain Rammed . | . . . . . . Walls Destroyed . | . . . . . . Machines Disabled . | . . . . . . Actions | -11 -10 -10 -9 -9 -8 --------- Run | Yrd Mat Min Mat Min Mat Total 522 | 59 181 30 53 82 117 Wait 16 | . 16 . . . . Move 383 | 45 128 13 41 82 74 Hop . | . . . . . . Pick Up 25 | 9 3 1 6 . 6 Fast Attach . | . . . . . . Attach 19 | 5 4 1 4 . 5 Detach . | . . . . . . Swap 1 | . 1 . . . . Drop 4 | . 2 . 2 . . Fire 71 | . 27 14 . . 30 Melee . | . . . . . . Ram . | . . . . . . Kick 1 | . . 1 . . . Crush 2 | . . . . . 2 Escape Stasis . | . . . . . . Rewire . | . . . . . . Trap . | . . . . . . Miscellaneous . | . . . . . . Route ------- -11/Scrapyard -10/Materials -10/Mines -9/Materials -9/Mines -8/Materials History --------- Turn | Location | Event 5 | -11/Scrapyard | Discovered new exit (range 14) 70 | -11/Scrapyard | Entered Materials 317 | -10/Materials | Discovered new exit (range 15) 328 | -10/Materials | Build established: Mutant 355 | -10/Materials | Entered Mines 359 | -10/Mines | Discovered new exit (range 10) 418 | -10/Mines | Entered Materials 418 | -9/Materials | Evolved 2 slots: Propulsion x2 477 | -9/Materials | Discovered new exit (range 16) 501 | -9/Materials | Entered Mines 557 | -9/Mines | Learned location of 1 exit from Lower Caves 599 | -9/Mines | Learned Materials trap positions 620 | -9/Mines | Discovered new exit (range 9) 633 | -9/Mines | Entered Materials 633 | -8/Materials | Evolved 2 slots: Utility x2 634 | -8/Materials | Loaded intel: 22 trap records 834 | -8/Materials | Core integrity fell below 50% 842 | -8/Materials | Core integrity fell below 20% 848 | -8/Materials | Destroyed by G-47 Trooper with Particle Gun Last Messages --------------- Slug penetrates Wall. G-47 Trooper destroyed. Penetrated by Slug. Wall collapses. Penetrated by Slug. Hrd. Medium Armor Plating destroyed. Penetrated by Slug. Slug penetrates Wall. Spread Laser destroyed. M-13 Machinist repairs H-55 Commando. Slug penetrates Wall. Penetrated by Slug. Acquired Spread Laser. Slug penetrates Wall. Penetrated by Slug. Wall collapses. Slug penetrates Wall. U-05 Engineer builds a Wall. Penetrated by Slug. U-05 Engineer builds a Wall. Map ----- +----------------------------------------------------+ | ?????????????????????????????????????????????????? | | ?????????????????????????????????????????????????? | | ?????????????????????????????????????????????????? | | ????????????????????########?????????????????????? | | ?????????????#####? #?????????????????????? | | ?????????????# #? #?????????????????????? | | ??????????#### # #?????????????????????? | | ?????????##! # #?????????????????????? | | ?????????#! + #?????????????????????? | | ?????????#! # #?????????????????????? | | ?????????#! # #?????????????????????? | | ?????????#! #? #?????????????????????? | | ?????????##! #?#########?????????????????????? | | ??????????#### #???????????????????#???????????? | | ?????????????# #????????????????? ????????????? | | ############## #################/### ????????? | | ???????? | | |* h ???????? | | %%! u ha ???????? | | ############+###########/######/#?????????????? | | #??????# ## #??????????????????? | | #??????# ## g[m #??????????????????? | | #??????# ## =%gh #??????????????????? | | #??????# """ """ ## % [ #??????????????????? | | #??????# """ """ ## ! #??????????????????? | | #??????# """ """ ## [@ #??????????????????? | | * ??????# ## [ #??????????????????? | | %= ??????# =## ! #??????????????????? | | [ ??????############ #??????????????????? | | % ?????????????????##########??????????????????? | | % ?????????????????????????????????????????????? | | ####?????????????????????????????????????????????? | | ?????????????????????????????????????????????????? | | ?????????????????????????????????????????????????? | | ?????????????????????????????????????????????????? | | ?????????????????????????????????????????????????? | | ?????????????????????????????????????????????????? | | ?????????????????????????????????????????????????? | | ?????????????????????????????????????????????????? | | ?????????????????????????????????????????????????? | | ?????????????????????????????????????????????????? | | ?????????????????????????????????????????????????? | | ?????????????????????????????????????????????????? | | ?????????????????????????????????????????????????? | | ?????????????????????????????????????????????????? | | ??????????????????????????????????????????^??????? | | ??????????????????????????????????????????^??????? | | ??????????????????????????????????????????^??????? | | ?????????????????????????????????????????????????? | | ?????????????????????????????????????????????????? | +----------------------------------------------------+ Best States ------------- Heat Dissipation 31 Energy Generation 10 Energy Capacity 250 Matter Stores 300 Matter Capacity 300 Sight Range 16 Terrain Scan Density 10 Armor Coverage 225 Evasion (%) 50 Recoil Reduction 4 Defensive Hacking 10 Item Schematics ----------------- None Robot Schematics ------------------ None Fabricated ------------ Nothing Alien Tech Used ----------------- None Achievements -------------- None Challenges ------------ None Game ------ Seed GrapheneAlphaTerrabomb Manual? 0 Play Time 00:15:58 Cumulative 7.5 hours Start 2024.04.06 @ 12:45:17 End 2024.04.06 @ 13:05:22 Sessions 1 Manual Loads 0 Difficulty Rogue Special Mode None Game No. 16 Rogue 16 Adventurer 0 Explorer 0 Win Type - Total 0 Types 0/0/0/0/0/0/0/0/0 Lore% 4 Gallery% 10 Achievement% 9 Wizard Run 0 Options --------- Layout 1 ASCII 1 Keyboard 0 Movement Vi Keybinds 0 Fullscreen 1 Font 16/SmallcapsGlow Map View 50x35 Zoom Use 0% Tactical HUD 0 Map Filters NONE Filters NONE Steam SD RUN: 6a1b470e-4651-4d88-b9b1-3cf0707f0e57